Cogmind - Beta 15 *** ADVENTURER MODE // 2025.06.20 @ 11:12:57 // Winter2019/RPGLIKE Player: H_ Result: Self-destructed Performance ------------- Evolutions (1) 500 Regions Visited (2) 400 Robots Destroyed (12) 60 Value Destroyed (239) 239 Prototype IDs (1) 20 Alien Tech Used (0) 0 Bonus (0) 0 TOTAL SCORE: 1219 Bonus ------- None Cogmind --------- Core Integrity 521/600 Matter 300/300 Energy 125/125 System Corruption 0% Temperature Cool (1) Movement Flying (40) Location -9/Materials Parts ------- > --- POWER (1) -------- Light Ion Engine > --- PROPULSION (1) --- Flight Unit > --- UTILITY (1) ------ (None) > --- WEAPON (1) ------- Improved Medium Laser > --- INVENTORY (1) ---- (None) Peak State ------------ > --- POWER ------------ Light Ion Engine > --- PROPULSION ------- Flight Unit > --- UTILITY ---------- (None) > --- WEAPON ----------- Improved Medium Laser > --- INVENTORY -------- EM Pulse Gun [Rating: 5] Favorites ----------- Power Light Ion Engine Engine Light Ion Engine Propulsion Flight Unit Wheel Wheel Flight Unit Flight Unit Utility None Weapon EM Pulse Gun Energy Gun EM Pulse Gun Build | -11 -10 -9 ------- Run | Yrd Mat Mat Slots Evolved . | . . . Power . | . . . Propulsion . | . . . Utility . | . . . Weapon . | . . . Parts Attached 5 | 2 2 1 Power 1 | . 1 . Engine 1 | . 1 . Core . | . . . Reactor . | . . . Propulsion 2 | 1 1 . Treads . | . . . Leg . | . . . Wheel 1 | 1 . . Hover . | . . . Flight 1 | . 1 . Utility . | . . . Device . | . . . Storage . | . . . Processor . | . . . Hackware . | . . . Protection . | . . . Artifact . | . . . Weapon 2 | 1 . 1 Energy Gun 2 | 1 . 1 Energy Cannon . | . . . Ballistic Gun . | . . . Ballistic Cannon . | . . . Launcher . | . . . Special Weapon . | . . . Impact Weapon . | . . . Slashing Weapon . | . . . Piercing Weapon . | . . . Special Melee Weapon . | . . . Unidentified Prototypes 1 | . . 1 Parts Lost . | . . . Power . | . . . Propulsion . | . . . Utility . | . . . Weapon . | . . . Highest Loss Streak . | . . . To Critical Strikes . | . . . Average Backups . | . . . Power . | . . . Propulsion . | . . . Utility . | . . . Weapon . | . . . Tool/Special . | . . . Unused Backups 1 | 1 . . Power . | . . . Propulsion 1 | 1 . . Utility . | . . . Weapon . | . . . Tool/Special . | . . . Average Slot Usage (%) 55 | . 46 75 Engine 14 | . 10 25 Flight 15 | . 11 25 Energy Gun 25 | . 25 25 Peak Build Rating 5 | 1 3 5 Average Rating 2 | . 1 4 On Entrance 1 | . 1 3 Naked Turns . | . . . Heaviest Build 6 | 2 5 6 Greatest Support 15 | 15 9 9 Greatest Overweight (x) . | . . . Average Overweight (x) . | . . . Largest Inventory Capacity 1 | 1 1 1 Average Capacity . | . 1 1 Most Carried 1 | 1 1 1 Average Carried . | . . . Final Capacity 1 | 1 1 1 Final Carried . | . . . Class Distribution -------------------- 100% | Mutant Dominant Class ---------------- Mutant | -10/Materials Mutant | -9/Materials Resources | -11 -10 -9 ----------- Run | Yrd Mat Mat Matter Collected 250 | 200 40 10 Remotely . | . . . Salvage Created 365 | . 185 180 Parts 23 | . 11 12 Haulers Intercepted . | . . . Recyclers Shooed . | . . . Parts Field Recycled . | . . . Retrieved Matter . | . . . Parts Self-Destructed . | . . . Prevented . | . . . Kills | -11 -10 -9 ------- Run | Yrd Mat Mat Combat Hostiles Destroyed 10 | . 5 5 Guns 10 | . 5 5 Classes Destroyed 4 | . 3 1 Watcher 2 | . 2 . Swarmer 6 | . 3 3 Grunt 3 | . 2 1 Sentry 1 | . . 1 Best Kill Streak 5 | . 4 5 Combat Bots Only 5 | . 3 5 Max Kills in Single Turn 1 | . 1 1 Gunslinging . | . . . Exploded . | . . . Melee . | . . . Uniques/NPCs Destroyed . | . . . Combat | -11 -10 -9 -------- Run | Yrd Mat Mat Hostile Shots Fired 36 | . 15 21 Missed 14 | . 7 7 Hits 22 | . 8 14 Projectile 22 | . 8 14 Damage Taken 148 | . 53 95 Core 125 | . 46 79 Absorbed by Shields . | . . . Redirected to Core 66 | . 20 46 Ignored by Resistances 48 | . 18 30 Core Remaining (%) 100 | 100 100 . Volleys Fired 35 | . 20 15 Largest 1 | . 1 1 Hottest 56 | . 40 56 Shots Fired 35 | . 20 15 Gun 35 | . 20 15 Cannon . | . . . Launcher . | . . . Special . | . . . Kinetic . | . . . Thermal 15 | . . 15 Explosive . | . . . Electromagnetic 20 | . 20 . Robot Hit Streak 16 | . 16 4 Robot Miss Streak 3 | . 3 2 Penetration Max . | . . . Secondary Targets . | . . . Shots Hit Robots 26 | . 17 9 Core Hits 14 | . 9 5 Critical Kills . | . . . Critical Parts Destroyed . | . . . Critical Strikes . | . . . Melee Attacks . | . . . Impact . | . . . Slashing . | . . . Piercing . | . . . Sneak Attacks . | . . . Combat Hostiles . | . . . Follow-up Attacks . | . . . Damage Inflicted 441 | . 285 156 Guns 393 | . 237 156 Cannons . | . . . Explosions 48 | . 48 . Melee . | . . . Ramming . | . . . Kinetic . | . . . Thermal 204 | . 48 156 Explosive . | . . . Electromagnetic 237 | . 237 . Impact . | . . . Slashing . | . . . Piercing . | . . . Highest Corruption . | . . . Average Corruption . | . . . Corruption Purged . | . . . Corruption Blocked . | . . . Overload Shots . | . . . Overflow Damage . | . . . Projectiles . | . . . Explosions . | . . . Melee . | . . . Knockbacks . | . . . Impact . | . . . Kinetic . | . . . Secondary . | . . . Self-Inflicted Damage . | . . . Shots . | . . . Rammed . | . . . Targets Rammed . | . . . Kicked . | . . . Crushed . | . . . Highest Temperature 34 | . 3 34 Average Temperature 20 | . 3 21 Received Heat Transfer 39 | . 24 15 Siege Activations . | . . . Martial Activations . | . . . Shielding Activations . | . . . Robots Disrupted . | . . . Combat Hostiles . | . . . Robots Corrupted . | . . . Combat Hostiles . | . . . Parts Fried . | . . . Impact Corruptions . | . . . Robots Melted . | . . . Combat Hostiles . | . . . Parts Melted . | . . . Heat Transferred 433 | . 100 333 Parts Sabotaged . | . . . Parts Stolen . | . . . Parts Stripped . | . . . Power Chain Reactions 1 | . 1 . Alert | -11 -10 -9 ------- Run | Yrd Mat Mat Maximum Alert Level . | . . . Low Security (%) 100 | 100 100 100 Level 1 . | . . . Level 2 . | . . . Level 3 . | . . . Level 4 . | . . . Level 5 . | . . . High Security . | . . . Max Security . | . . . Peak Influence 147 | . 116 147 Initial 37 | . . 37 Average 44 | . 48 81 Influence Increases 276 | . 146 130 Destroy 0b10 Robot/C 200 | . 100 100 Destroy 0b10 Robot/NC 10 | . 10 . Destroy Leader 44 | . 14 30 Destroy Structure 7 | . 7 . Lose Combat Pursuer 15 | . 15 . Influence Decreases 129 | . 40 89 Entered New Map 69 | . . 69 Time Decay 60 | . 40 20 Squads Dispatched 1 | . . 1 Investigation . | . . . Extermination . | . . . Reinforcement 1 | . . 1 Assault . | . . . Garrison . | . . . Intercept . | . . . Searches Triggered . | . . . Construction Impeded . | . . . Haulers Reinforced . | . . . Active Scanning Responses . | . . . Cargo Convoy Interrupts . | . . . Stealth | -11 -10 -9 --------- Run | Yrd Mat Mat Distress Signals . | . . . Communications Jammed . | . . . Distress Signals . | . . . Times Spotted 14 | . 8 6 Peak Tracking Total 4 | . 3 4 Tactical Retreats 1 | . 1 . Traps | -11 -10 -9 ------- Run | Yrd Mat Mat Traps Triggered . | . . . Indirectly . | . . . Trap Hack Attempts . | . . . Triggered . | . . . Disarmed . | . . . Reprogrammed . | . . . Reused . | . . . Traps Extracted . | . . . Installed . | . . . Triggered . | . . . Machines | -11 -10 -9 ---------- Run | Yrd Mat Mat Machines Disabled . | . . . Max in Single Turn . | . . . Machines Repaired . | . . . Machines Dismantled . | . . . Machines Sabotaged . | . . . Overloaded Fab Kills . | . . . Hacking | -11 -10 -9 --------- Run | Yrd Mat Mat Machines Accessed . | . . . Terminals . | . . . Fabricators . | . . . Repair Stations . | . . . Recycling Units . | . . . Scanalyzers . | . . . Garrison Access . | . . . Total Hacks . | . . . Successful . | . . . Failed . | . . . Catastrophic . | . . . Database Lockouts . | . . . Manual . | . . . Terminals . | . . . Fabricators . | . . . Repair Stations . | . . . Recycling Units . | . . . Scanalyzers . | . . . Garrison Access . | . . . Terminal Hacks . | . . . Fabricator Hacks . | . . . Repair Station Hacks . | . . . Recycling Unit Hacks . | . . . Scanalyzer . | . . . Garrison Access Hacks . | . . . Unauthorized Hacks . | . . . Terminals . | . . . Fabricators . | . . . Repair Stations . | . . . Recycling Units . | . . . Scanalyzers . | . . . Garrison Access . | . . . Data Cores Recovered . | . . . Used . | . . . Hacking Detections . | . . . Full Trace Events . | . . . Feedback Events . | . . . Feedback Blocked . | . . . Robot Schematics Acquired . | . . . Robots Built . | . . . Authchips . | . . . Time . | . . . Total Robot Build Rating . | . . . Part Schematics Acquired . | . . . Parts Built . | . . . Authchips . | . . . Time . | . . . Total Part Build Rating . | . . . Parts Repaired . | . . . Time . | . . . Parts Recycled . | . . . Recycled Matter . | . . . Retrieved Matter . | . . . Retrieved Components . | . . . Parts Scanalyzed . | . . . Part Schematics Acquired . | . . . Parts Damaged . | . . . Bothacking | -11 -10 -9 ------------ Run | Yrd Mat Mat Used RIF Installer . | . . . Robots Hacked . | . . . Non-combat . | . . . Combat . | . . . Robot Hacks Applied . | . . . Relay Couplers Released . | . . . Fabnet Peak Effective % . | . . . Robots Rewired . | . . . Allies Hacked . | . . . Hacks Repelled . | . . . Allies | -11 -10 -9 -------- Run | Yrd Mat Mat Total Allies . | . . . Largest Group . | . . . Highest-Rated Group . | . . . Highest-Rated Ally . | . . . Total Orders . | . . . Ally Attacks . | . . . Total Damage . | . . . Kills . | . . . Allies Corrupted . | . . . Allies Melted . | . . . Intel | -11 -10 -9 ------- Run | Yrd Mat Mat Active Infowar (turns) . | . . . Robot Analysis Total . | . . . Derelict Logs Recovered . | . . . Drone Launches . | . . . Drone Recoveries . | . . . Exploration | -11 -10 -9 ------------- Run | Yrd Mat Mat Turns Passed 265 | 63 144 58 Spaces Moved 308 | 36 211 61 Core 155 | 35 120 . Treads . | . . . Legs . | . . . Wheels 1 | 1 . . Hover . | . . . Flight 152 | . 91 61 Fastest Speed 40 | 50 40 40 Average Speed 45 | 50 45 40 Slowest Speed 80 | 80 50 40 Overloaded Moves . | . . . Propulsion Burnouts . | . . . Robots Hopped . | . . . Potential Cave-ins . | . . . Cave-ins Triggered . | . . . Exploration Rate (%) 16 | 3 34 11 Regions Visited 2 Branch Regions . Pre-discovered Areas . | . . . Known Exits Taken . | . . . Unknown Exits Taken 2 | 1 1 . Scrap Searched . | . . . Spaces Dug . | . . . Terrain Destroyed 7 | . 7 . Melee . | . . . Projectile . | . . . AOE 7 | . 7 . Terrain Rammed . | . . . Walls Destroyed . | . . . Machines Disabled . | . . . Actions | -11 -10 -9 --------- Run | Yrd Mat Mat Total 396 | 80 237 79 Wait 39 | 39 . . Move 306 | 35 210 61 Hop . | . . . Pick Up 5 | 2 2 1 Fast Attach 1 | 1 . . Attach 3 | 1 2 . Detach . | . . . Swap 1 | . . 1 Drop 3 | 2 . 1 Fire 35 | . 20 15 Melee . | . . . Ram . | . . . Kick . | . . . Crush . | . . . Escape Stasis . | . . . Rewire . | . . . Trap . | . . . Miscellaneous 3 | . 3 . Route ------- -11/Scrapyard -10/Materials -9/Materials History --------- Turn | Location | Event 2 | -11/Scrapyard | Discovered new exit (range 20) 64 | -11/Scrapyard | Entered Materials 204 | -10/Materials | Discovered new exit (range 7) 208 | -10/Materials | Entered another Materials area 210 | -9/Materials | Reached level 2 210 | -9/Materials | Reached level 3 258 | -9/Materials | Reached level 4 266 | -9/Materials | Self-destructed Last Messages --------------- GOAL=ESCAPE 00210_ Reached level 2. 00210_ Reached level 3. 00212_ Acquired Prototype Energy Gun. 00213_ Identified Imp. Medium Laser. 00215_ Dropped EM Pulse Gun. 00220_ O-16 Technician: "IFF HANDSHAKE FAILED. SECURING TERMINAL." 00228_ ALERT: Hostiles spotted, dispatching reinforcements to Terminal M001. 00231_ Y-45 Defender destroyed. 00233_ S-10 Pest destroyed. 00237_ Upgraded: Heat Dissipation (+6) 00237_ Upgraded: Energy Generation (+5) 00237_ Upgraded: Ranged Accuracy (+20) 00237_ S-10 Pest destroyed. 00258_ Reached level 4. 00258_ G-34 Mercenary destroyed. 00260_ Acquired 10 matter. 00265_ R-06 Scavenger collects Hvy. Assault Rifle. [Achievement: Back For More] Map ----- +----------------------------------------------------+ | ?????????????????????????????????????????????????? | | ?????????????????????????????????????????????????? | | ?????????????????????????????????????????????????? | | ?????????????????????????????????????????????????? | | ?????????????????????????????????????????????????? | | ?????????????????????????????????????????????????? | | ?????????????????????????????????????????????????? | | ?????????????????????????????????????????????????? | | ?????????????????????????????????????????????????? | | ??????????????????????# ?????????????????????????? | | ??????????????????????# ?????????????????????????? | | ??????????????????????# ?????????????????????????? | | ??????????????????????# ?????????????????????????? | | ??????????????????????# #####????????????????????? | | ??????????????????????# #????????????????????? | | ??????????????????????# T ???#?????????????????? | | ??????????????????????+ "" ???# ????????????????? | | ??????????????????????# ???? ???????????????? | | ??????????????????????# ????? ""?????????????? | | ???????????????????????# #??????? ????????????? | | ???????????????????????# #??????###+###????????? | | ???????????????????????# ######## [%=########## | | ???????????????????????# =**% | | ???????????????????????# !% | | ???????????????????????# =% =%*=[ | | ???????????????????????# @ ######## ########## | | ???????????????????????# #??????#######???????? | | ???????????????????????# #????????????????????"" | | ???????????????????????# #?????????????????????? | | ???????????????????????+ #?????????????????????? | | ???????????????????????# #?????????????????????? | | ???????????????????????# #?????????????????????? | | ???????????????????????# #?????????????????????? | | ???????????????????????# #?????????????????????? | | ???????????????????????# #?????????????????????? | | ???????????????????????# #?????????????????????? | | ???????????????????????+ #?????????????????????? | | ???????????????????????# #?????????????????????? | | ???????????????????????# #?????????????????????? | | ???????????????????????# #?????????????????????? | | ???????????????????????# #?????????????????????? | | ???????????????????????# ??????????????????????? | | ???????????????????????? ??????????????????????? | | ???????????????????????? ??????????????????????? | | ???????????????????????? ??????????????????????? | | ?????????????????????????????????????????????????? | | ?????????????????????????????????????????????????? | | ?????????????????????????????????????????????????? | | ?????????????????????????????????????????????????? | | ?????????????????????????????????????????????????? | +----------------------------------------------------+ Best States ------------- Heat Dissipation 43 Energy Generation 15 Energy Capacity 125 Matter Stores 300 Matter Capacity 300 Sight Range 20 Robot Scan Range 20 Terrain Scan Density 310 Resistance: KI 20 Resistance: TH 20 Resistance: EX 20 Resistance: EM 20 Resistance: I 20 Resistance: S 20 Resistance: P 20 Evasion (%) 62 Offensive Hacking 10 Item Schematics ----------------- None Robot Schematics ------------------ None Fabricated ------------ Nothing Repaired ---------- Nothing Alien Tech Used ----------------- None Achievements -------------- Back For More Challenges ------------ None RPGLIKE | -11 -10 -9 --------- Run | Yrd Mat Mat Levels Raised 3 | . . 3 XP Earned 8665 | 4000 550 4115 XP Spent 6555 | 3965 . 2590 Upgrades 27 | 21 . 6 Heat Dissipation 3 | 2 . 1 Energy Generation 1 | . . 1 Mass Support 1 | 1 . . Inventory Capacity 1 | 1 . . Sight Range 4 | 4 . . Sensor Range 10 | 10 . . Terrain Scan Density 3 | 3 . . Ranged Accuracy 4 | . . 4 Protomatter Created 48 | . 33 15 Integrity Restored 64 | . 64 . Core 46 | . 46 . Parts 18 | . 18 . Protomatter Decayed 10 | . 10 . Game ------ Seed ThiefAdvancedGravjet Manual? 0 Play Time 00:11:07 Cumulative 202.3 hours Start 2025.06.20 @ 10:57:09 End 2025.06.20 @ 11:12:57 Sessions 1 Manual Loads 0 Difficulty Adventurer Special Mode Winter2019/RPGLIKE Game No. 50 Rogue 12 Adventurer 7 Explorer 31 Win Type - Total 4 Types 2/0/2/0/0/0/0/0/0/0 Lore% 55 Gallery% 64 Achievement% 70 Wizard Run 0 Options --------- Layout 0 ASCII 0 Keyboard 0 Movement Mouse Keybinds 0 Fullscreen 2 Font 24/Smallcaps Map View 76x50 Zoom Use 0% Tactical HUD 1 Map Filters NONE Filters NONE Steam 1 RUN: c9734391-10b6-48b1-af2b-71887854b333